Cogmind - Beta 17 @@@ ROGUE MODE // 2026.08.10 @ 23:35:35 Player: Afro Result: Destroyed by G-73 Enforcer with Heavy Laser Performance ------------- Evolutions (8) 4000 Regions Visited (10) 2000 Robots Destroyed (136) 680 Value Destroyed (4778) 4778 Prototype IDs (6) 120 Alien Tech Used (0) 0 Bonus (800) 800 TOTAL SCORE: 12378 Bonus ------- Registered with UFD 300 Met Optimus in HQ 500 Cogmind --------- Core Integrity 0/1450 Matter 165/300 Energy 25/100 System Corruption 0% Temperature Cool (9) Movement Core (50) Location -2/Research Parts ------- > --- POWER (2) -------- (None) > --- PROPULSION (5) --- (None) > --- UTILITY (13) ----- Improved Signal Interpreter Advanced Melee Analysis Suite > --- WEAPON (3) ------- (None) > --- INVENTORY (5) ---- Companion Sword Peak State ------------ > --- POWER ------------ Micro Antimatter Reactor Micro Antimatter Reactor > --- PROPULSION ------- Armored Medium Treads Myomer Leg Biometal Leg Improved Thunder Leg > --- UTILITY ---------- Large Storage Unit Structural Scanner Enhanced Optical Array Improved Signal Interpreter Improved Melee Analysis Suite Improved Melee Analysis Suite Advanced Melee Analysis Suite Advanced Transmission Jammer Advanced Point Defense System Hacking Suite System Shield Advanced Dynamic Insulation System > --- WEAPON ----------- Power Sword Power Sword Companion Sword > --- INVENTORY -------- Light Antimatter Reactor Medium Treads Improved Antigrav System Improved Antigrav System Xenon Bombardment Thruster Xenon Bombardment Thruster Xenon Bombardment Thruster Xenon Bombardment Thruster Xenon Bombardment Thruster Xenon Bombardment Thruster Xenon Bombardment Thruster Improved Transmission Jammer Advanced Dynamic Insulation System Advanced Dynamic Insulation System Quantum Rifle [Rating: 121] Favorites ----------- Power Heavy Ion Engine Engine Heavy Ion Engine Power Core Light Fission Core Reactor Light Antimatter Reactor Propulsion Armored Treads Treads Armored Treads Leg Flexi-carbon Leg Flight Unit Xenon Bombardment Thruster Utility Large Storage Unit Device Structural Scanner Storage Large Storage Unit Processor Advanced Melee Analysis Suite Hackware Hacking Suite Protection Improved Heavy Armor Plating Weapon Companion Sword Energy Gun Medium Laser Energy Cannon Ion Cannon Ballistic Gun Autogun Ballistic Cannon Light Cannon Special Weapon CPS Tube Impact Weapon Powered Hammer Slashing Weapon Companion Sword Build | -11 -10 -9 -9 -9 -9 -6 -5 -4 -3 -2 ------- Run | Yrd Mat Mat Sto Rec Scr Fac Fac Fac Res Res Slots Evolved 16 | . . 2 . . . 6 2 2 2 2 Power 1 | . . . . . . . . 1 . . Propulsion 3 | . . 1 . . . 1 . . . 1 Utility 11 | . . . . . . 5 2 1 2 1 Weapon 1 | . . 1 . . . . . . . . Parts Attached 162 | 3 11 36 1 1 8 39 13 6 28 16 Power 21 | . 1 3 . . 1 2 . 3 9 2 Engine 7 | . 1 3 . . 1 1 . . 1 . Core 1 | . . . . . . . . 1 . . Reactor 13 | . . . . . . 1 . 2 8 2 Propulsion 61 | 2 2 17 . . . 16 5 1 6 12 Treads 16 | 2 . 7 . . . 1 . . 1 5 Leg 37 | . 2 9 . . . 15 5 1 5 . Wheel . | . . . . . . . . . . . Hover . | . . . . . . . . . . . Flight 8 | . . 1 . . . . . . . 7 Utility 52 | 1 1 5 1 . 2 19 8 . 13 2 Device 25 | 1 . 2 1 . 1 7 3 . 8 2 Storage 1 | . 1 . . . . . . . . . Processor 8 | . . . . . . 2 3 . 3 . Hackware 4 | . . . . . . 2 . . 2 . Protection 14 | . . 3 . . 1 8 2 . . . Artifact . | . . . . . . . . . . . Weapon 28 | . 7 11 . 1 5 2 . 2 . . Energy Gun 3 | . 1 2 . . . . . . . . Energy Cannon 5 | . . 5 . . . . . . . . Ballistic Gun 5 | . 1 2 . 1 1 . . . . . Ballistic Cannon 6 | . 3 2 . . 1 . . . . . Launcher . | . . . . . . . . . . . Special Weapon 1 | . . . . . 1 . . . . . Impact Weapon 3 | . . . . . 1 2 . . . . Slashing Weapon 5 | . 2 . . . 1 . . 2 . . Piercing Weapon . | . . . . . . . . . . . Special Melee Weapon . | . . . . . . . . . . . Unidentified Prototypes 6 | . . 4 . . 1 . . . 1 . Parts Lost 58 | . . 4 . . . 8 5 3 19 19 Power 9 | . . . . . . 1 . 1 4 3 Propulsion 21 | . . 2 . . . 1 1 2 7 8 Utility 27 | . . 1 . . . 6 4 . 8 8 Weapon 1 | . . 1 . . . . . . . . Highest Loss Streak 19 | . . 3 . . . 2 4 3 9 19 To Critical Strikes 1 | . . . . . . . . . 1 . Average Backups 11 | 3 9 14 15 15 11 11 12 11 11 4 Power 1 | 1 1 2 2 2 . 2 3 3 2 . Propulsion 3 | 2 2 2 3 3 2 4 2 3 5 3 Utility 4 | . 2 5 6 5 3 4 6 3 2 . Weapon 2 | . 3 3 4 4 4 . . . . . Tool/Special . | . . . . . . . . . . . Unused Backups 40 | . 3 10 . 2 8 4 4 . 2 7 Power 7 | . . 1 . . . . 3 . 2 1 Propulsion 9 | . 1 2 . . 2 1 . . . 3 Utility 14 | . 2 4 . 1 2 2 1 . . 2 Weapon 10 | . . 3 . 1 4 1 . . . 1 Tool/Special . | . . . . . . . . . . . Average Slot Usage (%) 80 | . 99 97 100 98 63 76 77 84 92 72 Engine 8 | . 14 11 11 11 11 3 5 . . . Reactor 1 | . . . . . . 2 . 9 7 6 Treads 16 | . 11 11 33 33 33 10 . . . 1 Leg 11 | . 16 20 . . . 14 23 20 17 . Device 10 | . 14 6 11 11 9 7 10 9 17 16 Storage 8 | . 14 11 11 11 8 6 5 5 4 . Processor 4 | . . . . . . 3 13 21 19 19 Hackware 1 | . . . . . . 5 . . 2 4 Protection 4 | . . 4 . . 1 11 10 10 4 . Energy Cannon 1 | . . 7 22 20 . . . . . . Ballistic Gun 1 | . 2 4 11 10 . . . . . . Ballistic Cannon 4 | . 12 17 . . . . . . . . Slashing Weapon 4 | . 9 . . . . 5 5 6 14 4 Peak Build Rating 121 | 7 8 26 25 24 27 61 72 91 121 106 Average Rating 37 | 6 7 15 24 23 19 49 67 81 105 83 On Entrance 39 | 6 7 8 24 24 16 19 60 64 89 114 Avg Prop Armor Cover (%) 10 | . . 4 . . . . . . 12 . Naked Turns . | . . . . . . . . . . . Heaviest Build 84 | 12 32 52 43 43 35 68 65 84 81 55 Greatest Support 105 | 40 40 60 60 60 60 80 75 80 83 105 Greatest Overweight (x) 4 | . 4 2 . . . 2 . 1 1 4 Average Overweight (x) . | . . . . . . . . . . . Largest Inventory Capacity 15 | 8 15 15 15 15 15 15 15 15 15 15 Average Capacity 13 | 8 12 15 15 15 12 15 15 15 15 5 Most Carried 15 | 5 15 15 15 15 15 15 15 13 15 15 Average Carried 12 | 3 9 14 15 15 12 12 14 12 11 3 Final Capacity 15 | 8 15 15 15 15 15 15 15 15 15 5 Final Carried 15 | 3 15 15 15 15 15 15 14 10 15 1 Scrap Suit Usage (%) 4 | . . . . . . 22 . . . . Parts Cannibalized 7 | . . . . . . 7 . . . . Class Distribution -------------------- 60% | Mutant 9% | Scavenger-Gladiator 9% | Scavenger-Mutant 5% | Skirmisher 4% | Hacker-Mutant 3% | Scavenger-Tank Dominant Class ---------------- Mutant | -10/Materials Scavenger-Tank | -9/Materials Skirmisher | -9/Storage Skirmisher | -9/Recycling Mutant | -9/Scraptown Mutant | -6/Factory Mutant | -5/Factory Scavenger-Mutant | -4/Factory Scavenger-Gladiator | -3/Research Scavenger-Sprinter | -2/Research Resources | -11 -10 -9 -9 -9 -9 -6 -5 -4 -3 -2 ----------- Run | Yrd Mat Mat Sto Rec Scr Fac Fac Fac Res Res Matter Collected 3656 | 230 373 1091 86 83 481 760 159 70 323 . Remotely . | . . . . . . . . . . . Salvage Created 5476 | 105 376 1126 86 140 . 1838 673 98 1034 . Parts 319 | 6 26 68 6 5 . 103 44 6 55 . Haulers Intercepted 6 | . 1 3 . . . 1 . . 1 . Recyclers Shooed 5 | . . 1 1 . . 3 . . . . Parts Field Recycled . | . . . . . . . . . . . Retrieved Matter . | . . . . . . . . . . . Parts Self-Destructed . | . . . . . . . . . . . Prevented . | . . . . . . . . . . . Parts Restored . | . . . . . . . . . . . Kills | -11 -10 -9 -9 -9 -9 -6 -5 -4 -3 -2 ------- Run | Yrd Mat Mat Sto Rec Scr Fac Fac Fac Res Res Combat Hostiles Destroyed 101 | . 10 30 2 1 . 27 12 4 15 . Melee 59 | . 2 . . . . 26 12 4 15 . Guns 10 | . 5 5 . . . . . . . . Cannons 31 | . 3 25 2 1 . . . . . . Classes Destroyed 14 | 2 6 2 . . . 3 . . 1 . Worker 9 | . 2 1 . . . 5 . . 1 . Builder 5 | . . . . . . 3 . . 2 . Tunneler 2 | 1 . . . . . 1 . . . . Hauler 6 | . 1 3 . . . 1 . . 1 . Recycler 4 | 1 . 1 . 1 . 1 . . . . Mechanic 1 | . . . . . . . . . 1 . Operator 4 | . 2 . . . . 1 . . 1 . Watcher 4 | . 1 2 . . . . 1 . . . Swarmer 28 | . 4 8 . . . 3 2 4 7 . Grunt 35 | . 6 14 1 . . 11 3 . . . Duelist 3 | . . 2 . . . . 1 . . . Sentry 14 | . . 6 1 1 . 4 . . 2 . Hunter 9 | . . . . . . 3 4 . 2 . Programmer 12 | . . . . . . 6 2 . 4 . Best Kill Streak 6 | 2 3 6 1 2 . 5 4 3 5 . Combat Bots Only 6 | . 2 6 1 1 . 5 3 3 3 . Max Kills in Single Turn 1 | 1 1 1 1 1 . 1 1 1 1 . Gunslinging . | . . . . . . . . . . . Exploded . | . . . . . . . . . . . Melee 1 | . 1 . . . . 1 1 1 1 . Uniques/NPCs Destroyed . | . . . . . . . . . . . Combat | -11 -10 -9 -9 -9 -9 -6 -5 -4 -3 -2 -------- Run | Yrd Mat Mat Sto Rec Scr Fac Fac Fac Res Res Hostile Shots Fired 1275 | . 56 168 2 4 . 376 174 52 237 206 Missed 343 | . 16 45 1 3 . 108 30 16 63 61 Hits 932 | . 40 123 1 1 . 268 144 36 174 145 Melee 21 | . . 3 . . . . 6 . . 12 Projectile 911 | . 40 120 1 1 . 268 138 36 174 133 Critical Strikes 32 | . 1 3 . . . 7 4 1 7 9 Actively Blocked 1 | . . . . . . 1 . . . . Part Disruptions 1 | . . . . . . . . 1 . . Damage Taken 15494 | . 438 1522 15 16 . 3564 2555 649 3314 3421 Core 2911 | . 91 243 . . . 329 200 60 527 1461 Absorbed by Shields 160 | . . . . . . . . . 160 . Redirected to Shielding 31 | . . . . . . 31 . . . . Ignored by Resistances 914 | . . . . . . 355 . 99 460 . Regen/Repaired (Parts) 56 | . . . . . . 56 . . . . Core Remaining (%) 70 | 100 63 . . . 39 61 80 94 59 . Volleys Fired 128 | 5 42 75 4 2 . . . . . . Largest 3 | 2 2 3 3 3 . . . . . . Hottest 151 | 90 70 151 143 143 . . . . . . Shots Fired 326 | 10 84 215 10 7 . . . . . . Gun 110 | 10 47 47 3 3 . . . . . . Cannon 216 | . 37 168 7 4 . . . . . . Launcher . | . . . . . . . . . . . Special . | . . . . . . . . . . . Kinetic 235 | . 62 167 3 3 . . . . . . Thermal 91 | 10 22 48 7 4 . . . . . . Explosive . | . . . . . . . . . . . Electromagnetic . | . . . . . . . . . . . Robot Hit Streak 10 | 4 9 10 6 6 . . . . . . Robot Miss Streak 7 | 2 5 7 3 . . . . . . . Penetration Max . | . . . . . . . . . . . Secondary Targets . | . . . . . . . . . . . Shots Hit Robots 454 | 6 56 107 4 6 . 113 45 6 105 6 Core Hits 174 | 3 22 47 4 2 . 44 18 4 28 2 Critical Kills . | . . . . . . . . . . . Critical Parts Destroyed 3 | . . 1 . . . 2 . . . . Critical Strikes 16 | . 2 4 . . . 6 2 . 2 . Burn 1 | . 1 . . . . . . . . . Destroy 1 | . . 1 . . . . . . . . Blast 4 | . 1 3 . . . . . . . . Smash 2 | . . . . . . 2 . . . . Sever 2 | . . . . . . . . . 2 . Melee Attacks 370 | . 18 1 . . . 159 55 13 114 10 Impact 6 | . . . . . . 6 . . . . Slashing 364 | . 18 1 . . . 153 55 13 114 10 Piercing . | . . . . . . . . . . . Sneak Attacks 26 | . 5 . . . . 15 . . 6 . Combat Hostiles 1 | . . . . . . 1 . . . . Follow-up Attacks 26 | . 3 . . . . 5 1 . 17 . Damage Inflicted 15952 | 82 1010 1891 91 130 . 5430 1918 266 4924 210 Guns 881 | 82 313 442 14 30 . . . . . . Cannons 1908 | . 287 1448 73 100 . . . . . . Explosions . | . . . . . . . . . . . Melee 13124 | . 386 . . . . 5420 1918 266 4924 210 Ramming 39 | . 24 1 4 . . 10 . . . . Kinetic 1884 | . 385 1455 14 30 . . . . . . Thermal 905 | 82 215 435 73 100 . . . . . . Explosive . | . . . . . . . . . . . Electromagnetic . | . . . . . . . . . . . Impact 228 | . . . . . . 228 . . . . Slashing 12896 | . 386 . . . . 5192 1918 266 4924 210 Piercing . | . . . . . . . . . . . Highest Corruption 10 | . . 9 9 9 9 8 1 . 10 . Average Corruption 6 | . . 5 9 9 9 3 1 . 8 . Corruption Purged . | . . . . . . . . . . . Corruption Blocked . | . . . . . . . . . . . Effects 244 | . . 41 9 4 125 52 1 . 12 . Message Errors 70 | . . 11 . 2 43 13 . . 1 . Matter Fused 54 | . . 11 1 . 27 10 1 . 4 . Heat Flow Errors 31 | . . 4 3 1 17 5 . . 1 . Energy Discharges 31 | . . 3 . . 16 10 . . 2 . Parts Rejected 2 | . . . . . . 2 . . . . Parts Fused 2 | . . 1 . . 1 . . . . . Data Loss (minor) 35 | . . 5 1 . 17 8 . . 4 . Data Loss (major) 8 | . . 1 2 . 2 3 . . . . Misfires 2 | . . 1 . 1 . . . . . . Alerts 4 | . . 1 . . 2 1 . . . . Weapon Failures 5 | . . 3 2 . . . . . . . Overload Shots . | . . . . . . . . . . . Overflow Damage 1327 | . 84 1 . . . 733 55 . 454 . Projectiles 1 | . . 1 . . . . . . . . Explosions . | . . . . . . . . . . . Melee 1326 | . 84 . . . . 733 55 . 454 . Knockbacks 15 | . 2 10 . . . 3 . . . . Impact 3 | . . . . . . 3 . . . . Kinetic 10 | . 1 9 . . . . . . . . Secondary 2 | . 1 1 . . . . . . . . Self-Inflicted Damage . | . . . . . . . . . . . Shots . | . . . . . . . . . . . Rammed 10 | . 4 2 2 . . 2 . . . . Targets Rammed 13 | . 6 3 2 . . 2 . . . . Kicked 3 | . 2 1 . . . . . . . . Crushed . | . . . . . . . . . . . Highest Temperature 447 | 120 272 447 190 172 252 255 4 23 127 26 Average Temperature 94 | 53 81 118 70 80 107 92 3 7 77 9 Received Heat Transfer 2262 | . 195 510 . . . 744 198 93 108 414 Effects 10 | . 1 9 . . . . . . . . Shutdowns 3 | . . 3 . . . . . . . . Energy Bleed 4 | . 1 3 . . . . . . . . Short Circuit 1 | . . 1 . . . . . . . . Damage (minor) 2 | . . 2 . . . . . . . . Siege Activations . | . . . . . . . . . . . Martial Activations . | . . . . . . . . . . . Shielding Activations . | . . . . . . . . . . . Robots Disrupted 1 | . . . . . . . . . . 1 Combat Hostiles 1 | . . . . . . . . . . 1 Robots Corrupted 1 | . . . . . . 1 . . . . Combat Hostiles 1 | . . . . . . 1 . . . . Parts Fried 1 | . . . . . . 1 . . . . Impact Corruptions 5 | . . . . . . 5 . . . . Robots Melted . | . . . . . . . . . . . Combat Hostiles . | . . . . . . . . . . . Parts Melted 2 | . 1 1 . . . . . . . . Heat Transferred 2036 | 223 703 851 111 148 . . . . . . Parts Sabotaged . | . . . . . . . . . . . Parts Stolen . | . . . . . . . . . . . Parts Stripped . | . . . . . . . . . . . Power Chain Reactions . | . . . . . . . . . . . Alert | -11 -10 -9 -9 -9 -9 -6 -5 -4 -3 -2 ------- Run | Yrd Mat Mat Sto Rec Scr Fac Fac Fac Res Res Maximum Alert Level 1 | . . 1 . . . 1 1 . . . Low Security (%) 82 | 100 100 63 100 100 . 66 96 100 100 100 Level 1 17 | . . 36 . . . 33 3 . . . Level 2 . | . . . . . . . . . . . Level 3 . | . . . . . . . . . . . Level 4 . | . . . . . . . . . . . Level 5 . | . . . . . . . . . . . High Security . | . . . . . . . . . . . Max Security . | . . . . . . . . . . . Peak Influence 391 | 5 125 366 131 50 . 391 212 139 96 15 Initial 187 | . . 4 131 39 . . 187 46 36 . Average 98 | 1 27 161 112 22 . 139 135 60 19 . Influence Increases 3151 | 10 360 848 51 26 . 893 321 171 447 24 Destroy 0b10 Robot/C 2020 | . 200 600 40 20 . 540 240 80 300 . Destroy 0b10 Robot/NC 175 | 10 30 35 . 5 . 60 5 . 30 . Destroy Leader 460 | . 44 140 10 . . 152 42 10 62 . Successful Hack 145 | . 40 4 . . . 48 15 . 38 . Disable Machine 60 | . . 45 . . . 15 . . . . Destroy Structure 51 | . 1 9 1 1 . 18 4 6 2 9 Lose Combat Pursuer 240 | . 45 15 . . . 60 15 75 15 15 Influence Decreases 3151 | 10 348 547 262 128 . 509 609 196 518 24 Entered New Map 535 | . . 8 182 63 . . 197 50 35 . Time Decay 2239 | 10 348 499 80 65 . 439 362 116 311 9 Lost Part 377 | . . 40 . . . 70 50 30 172 15 Squads Dispatched 21 | . 1 2 1 . . 8 3 1 5 . Investigation 5 | . . 1 . . . . 2 1 1 . Extermination 9 | . . . . . . 5 1 . 3 . Reinforcement 7 | . 1 1 1 . . 3 . . 1 . Assault . | . . . . . . . . . . . Garrison . | . . . . . . . . . . . Intercept . | . . . . . . . . . . . Searches Triggered . | . . . . . . . . . . . Construction Impeded . | . . . . . . . . . . . Haulers Reinforced . | . . . . . . . . . . . Active Scanning Responses . | . . . . . . . . . . . Cargo Convoy Interrupts . | . . . . . . . . . . . Stealth | -11 -10 -9 -9 -9 -9 -6 -5 -4 -3 -2 --------- Run | Yrd Mat Mat Sto Rec Scr Fac Fac Fac Res Res Distress Signals 8 | . 1 3 . . . 1 2 . . 1 Communications Jammed 25 | . . . . . . . . . 22 3 Distress Signals 23 | . . . . . . . . . 22 1 Times Spotted 176 | . 27 38 3 1 . 41 20 12 26 8 Peak Tracking Total 8 | . 4 7 1 1 . 6 6 5 4 8 Tactical Retreats 10 | . 2 1 . . . 2 1 2 1 1 Traps | -11 -10 -9 -9 -9 -9 -6 -5 -4 -3 -2 ------- Run | Yrd Mat Mat Sto Rec Scr Fac Fac Fac Res Res Traps Triggered 11 | . 4 4 . . . 1 1 1 . . Indirectly . | . . . . . . . . . . . Trap Hack Attempts . | . . . . . . . . . . . Triggered . | . . . . . . . . . . . Disarmed . | . . . . . . . . . . . Reprogrammed . | . . . . . . . . . . . Reused . | . . . . . . . . . . . Traps Extracted . | . . . . . . . . . . . Installed . | . . . . . . . . . . . Triggered . | . . . . . . . . . . . Machines | -11 -10 -9 -9 -9 -9 -6 -5 -4 -3 -2 ---------- Run | Yrd Mat Mat Sto Rec Scr Fac Fac Fac Res Res Machines Disabled 4 | . . 3 . . . 1 . . . . Max in Single Turn 1 | . . 1 . . . 1 . . . . Machines Repaired . | . . . . . . . . . . . Machines Dismantled . | . . . . . . . . . . . Machines Sabotaged . | . . . . . . . . . . . Overloaded Fab Kills . | . . . . . . . . . . . Hacking | -11 -10 -9 -9 -9 -9 -6 -5 -4 -3 -2 --------- Run | Yrd Mat Mat Sto Rec Scr Fac Fac Fac Res Res Machines Accessed 43 | . 9 6 . 1 8 5 5 3 4 2 Terminals 25 | . 7 5 . . . 5 2 2 3 1 Fabricators 1 | . . . . . . . . . 1 . Repair Stations . | . . . . . . . . . . . Recycling Units 5 | . 2 . . . . . 2 1 . . Scanalyzers 3 | . . 1 . . . . 1 . . 1 Garrison Access . | . . . . . . . . . . . Total Hacks 154 | . 33 15 . 5 54 9 15 8 8 7 Successful 102 | . 22 8 . 5 54 4 3 2 2 2 Failed 51 | . 11 6 . . . 5 12 6 6 5 Catastrophic 8 | . . 1 . . . 2 2 1 . 2 Database Lockouts 1 | . . 1 . . . . . . . . Manual 93 | . 35 14 2 . . 10 12 8 7 5 Terminals 78 | . 28 14 . . . 9 8 7 7 5 Fabricators 1 | . . . . . . . . . 1 . Repair Stations . | . . . . . . . . . . . Recycling Units 10 | . 5 . . . . . 4 1 . . Scanalyzers 6 | . . 1 . . . . 3 . . 2 Garrison Access . | . . . . . . . . . . . Terminal Hacks 63 | . 3 1 . 5 54 . . . . . Record 51 | . . . . 5 46 . . . . . Robot Analysis 11 | . 3 1 . . 7 . . . . . Open Door 1 | . . . . . 1 . . . . . Fabricator Hacks . | . . . . . . . . . . . Repair Station Hacks . | . . . . . . . . . . . Recycling Unit Hacks . | . . . . . . . . . . . Scanalyzer 1 | . . . . . . . 1 . . . Retrieve Study 1 | . . . . . . . 1 . . . Garrison Access Hacks . | . . . . . . . . . . . Unauthorized Hacks 38 | . 19 7 . . . 4 2 2 2 2 Terminals 32 | . 14 7 . . . 4 2 1 2 2 Assimilate 1 | . 1 . . . . . . . . . Botnet 13 | . 7 2 . . . 2 1 . . 1 Skim 18 | . 6 5 . . . 2 1 1 2 1 Fabricators . | . . . . . . . . . . . Repair Stations . | . . . . . . . . . . . Recycling Units 6 | . 5 . . . . . . 1 . . Reject 2 | . 2 . . . . . . . . . Recyclers 1 | . 1 . . . . . . . . . Mask 2 | . 2 . . . . . . . . . Fedlink 1 | . . . . . . . . 1 . . Scanalyzers . | . . . . . . . . . . . Garrison Access . | . . . . . . . . . . . Data Cores Recovered 1 | . 1 . . . . . . . . . Used . | . . . . . . . . . . . Hacking Detections 31 | . 9 5 . . . 5 5 2 4 1 Full Trace Events 5 | . 1 1 . . . . 2 . 1 . Feedback Events . | . . . . . . . . . . . Feedback Blocked . | . . . . . . . . . . . Robot Schematics Acquired . | . . . . . . . . . . . Robots Built . | . . . . . . . . . . . Authchips . | . . . . . . . . . . . Time . | . . . . . . . . . . . Total Robot Build Rating . | . . . . . . . . . . . Part Schematics Acquired . | . . . . . . . . . . . Parts Built . | . . . . . . . . . . . Authchips . | . . . . . . . . . . . Time . | . . . . . . . . . . . Total Part Build Rating . | . . . . . . . . . . . Part Studies Acquired 1 | . . . . . . . 1 . . . Parts Repaired . | . . . . . . . . . . . Time . | . . . . . . . . . . . Parts Recycled . | . . . . . . . . . . . Recycled Matter . | . . . . . . . . . . . Retrieved Matter . | . . . . . . . . . . . Retrieved Components . | . . . . . . . . . . . Parts Scanalyzed . | . . . . . . . . . . . Part Schematics Acquired . | . . . . . . . . . . . Parts Damaged . | . . . . . . . . . . . Bothacking | -11 -10 -9 -9 -9 -9 -6 -5 -4 -3 -2 ------------ Run | Yrd Mat Mat Sto Rec Scr Fac Fac Fac Res Res Used RIF Installer . | . . . . . . . . . . . Robots Hacked . | . . . . . . . . . . . Non-combat . | . . . . . . . . . . . Combat . | . . . . . . . . . . . Robot Hacks Applied . | . . . . . . . . . . . Relay Couplers Released . | . . . . . . . . . . . Fabnet Peak Effective % . | . . . . . . . . . . . Robots Rewired . | . . . . . . . . . . . Allies Hacked . | . . . . . . . . . . . Hacks Repelled . | . . . . . . . . . . . Allies | -11 -10 -9 -9 -9 -9 -6 -5 -4 -3 -2 -------- Run | Yrd Mat Mat Sto Rec Scr Fac Fac Fac Res Res Total Allies . | . . . . . . . . . . . Largest Group . | . . . . . . . . . . . Highest-Rated Group . | . . . . . . . . . . . Highest-Rated Ally . | . . . . . . . . . . . Initial UFD Resources 44 | . . . . . . 24 26 29 42 44 Total Orders . | . . . . . . . . . . . Ally Attacks . | . . . . . . . . . . . Total Damage . | . . . . . . . . . . . Kills . | . . . . . . . . . . . Allies Corrupted . | . . . . . . . . . . . Allies Melted . | . . . . . . . . . . . Intel | -11 -10 -9 -9 -9 -9 -6 -5 -4 -3 -2 ------- Run | Yrd Mat Mat Sto Rec Scr Fac Fac Fac Res Res Active Infowar (turns) 8044 | 23 1678 742 169 178 2388 387 836 261 1195 187 Optics 864 | . . . . . . . 6 261 597 . Sensors 1215 | . . . . . . 387 828 . . . Terrain 1 | . . . . . . . . . 1 . Structural 4920 | . . 381 169 178 2388 . 215 261 1195 133 Seismic 2062 | 23 1678 361 . . . . . . . . T.N.C. 233 | . . . . . . . . . 46 187 Cloaking 65 | . . . . . . . . . 65 . Jamming 1404 | . . . . . . . 35 . 1195 174 ECM 1 | . . . . . . . . . . 1 Robot Analysis Total 11 | . 3 1 . . 7 . . . . . Derelict Logs Recovered . | . . . . . . . . . . . Drone Launches . | . . . . . . . . . . . Drone Recoveries . | . . . . . . . . . . . Exploration | -11 -10 -9 -9 -9 -9 -6 -5 -4 -3 -2 ------------- Run | Yrd Mat Mat Sto Rec Scr Fac Fac Fac Res Res Turns Passed 13048 | 50 1678 1764 177 178 3831 2889 838 261 1195 187 Spaces Moved 7254 | 19 811 749 82 97 2225 1638 542 126 638 327 Core 5 | . 1 . . . . . . . . 4 Treads 3699 | 19 355 312 82 97 2225 604 . . . 5 Legs 3232 | . 455 437 . . . 1034 542 126 638 . Wheels . | . . . . . . . . . . . Hover . | . . . . . . . . . . . Flight 318 | . . . . . . . . . . 318 Fastest Speed 28 | 160 160 160 170 170 170 120 112 116 112 28 Average Speed 151 | 160 176 181 170 170 170 139 116 173 135 32 Slowest Speed 260 | 160 250 260 170 170 170 260 120 190 190 250 Overloaded Moves . | . . . . . . . . . . . Propulsion Burnouts . | . . . . . . . . . . . Robots Hopped . | . . . . . . . . . . . Potential Cave-ins . | . . . . . . . . . . . Cave-ins Triggered . | . . . . . . . . . . . Exploration Rate (%) 31 | 4 95 47 21 25 92 32 12 3 13 7 Regions Visited 10 Branch Regions 3 Pre-discovered Areas . | . . . . . . . . . . . Known Exits Taken 5 | . 1 1 . . . . 1 1 1 . Unknown Exits Taken 5 | 1 . . 1 1 1 1 . . . . Scrap Searched 8 | . . . . . 8 . . . . . Spaces Dug 29 | . . 3 . . . 17 2 3 1 3 Terrain Destroyed 31 | . . 4 1 . . 17 2 3 1 3 Melee 26 | . . . . . . 17 2 3 1 3 Projectile 5 | . . 4 1 . . . . . . . AOE . | . . . . . . . . . . . Terrain Rammed . | . . . . . . . . . . . Walls Destroyed . | . . . . . . . . . . . Machines Disabled . | . . . . . . . . . . . Actions | -11 -10 -9 -9 -9 -9 -6 -5 -4 -3 -2 --------- Run | Yrd Mat Mat Sto Rec Scr Fac Fac Fac Res Res Total 8590 | 29 940 1007 109 109 2281 2050 689 149 827 400 Wait 330 | . 20 58 20 4 2 145 48 . 21 12 Move 7244 | 18 810 748 81 96 2224 1637 541 125 637 327 Hop . | . . . . . . . . . . . Pick Up 141 | . 17 29 . . 20 24 14 2 29 6 Fast Attach 68 | 1 8 14 . . 9 17 . 2 9 8 Attach 83 | . 5 11 . . 2 18 10 5 19 13 Detach 14 | . 1 1 . 2 3 4 1 . 1 1 Swap 55 | 2 6 19 2 1 . 9 9 1 5 1 Drop 171 | 3 10 48 . 4 21 41 12 1 12 19 Fire 128 | 5 42 75 4 2 . . . . . . Melee 340 | . 15 1 . . . 153 54 13 94 10 Ram . | . . . . . . . . . . . Kick 3 | . 2 1 . . . . . . . . Crush 10 | . 4 2 2 . . 2 . . . . Escape Stasis . | . . . . . . . . . . . Rewire 3 | . . . . . . . . . . 3 Trap . | . . . . . . . . . . . Miscellaneous . | . . . . . . . . . . . Route ------- -11/Scrapyard -10/Materials (discovered 5 exits: *Mat x3 / [*Min] / Sub) -9/Materials (discovered 5 exits: *Mat x2 / Min x2 / *Sto) -9/Storage (discovered 2 exits: Mat / *Rec) -9/Recycling -9/Scraptown (discovered 2 exits: *Fac x2) -6/Factory -5/Factory (discovered 2 exits: *Fac x2) -4/Factory -3/Research -2/Research History --------- Turn | Location | Event 18 | -11/Scrapyard | Discovered new exit (range 3) 51 | -11/Scrapyard | Entered Materials 301 | -10/Materials | Build established: Mutant 322 | -10/Materials | Discovered new exit (range 7) 1167 | -10/Materials | Discovered new exit (range 11) 1192 | -10/Materials | Discovered new exit (range 14) 1235 | -10/Materials | Learned 2 Storage zone layouts 1275 | -10/Materials | Identified exit to Materials 1275 | -10/Materials | Identified exit to Subcaves 1333 | -10/Materials | Learned location of 2 exits from Materials 1351 | -10/Materials | Learned location of 2 exits from Mines 1729 | -10/Materials | Entered another Materials area 1729 | -9/Materials | Evolved 2 slots: Propulsion x1, Weapon x1 1730 | -9/Materials | Identified exit to Mines 1731 | -9/Materials | Identified exit to Materials 1731 | -9/Materials | Identified exit to Storage 2028 | -9/Materials | Central database locked down 2029 | -9/Materials | Build established: Scavenger-Gunner 2890 | -9/Materials | Lost 3 parts (2n1w) 3041 | -9/Materials | Core integrity fell below 50% 3374 | -9/Materials | Discovered exit to Materials (range 7) 3493 | -9/Materials | Entered Storage 3519 | -9/Storage | Build established: Skirmisher 3663 | -9/Storage | Used back door to open Recycling access 3663 | -9/Storage | Discovered new exit (range 5) 3670 | -9/Storage | Entered Recycling 3801 | -9/Recycling | Scanned before Scraplab entrance 3820 | -9/Recycling | Discovered new exit (range 11) 3825 | -9/Recycling | Entered Scraplab 3848 | -9/Recycling | Entered Scraptown 4136 | -9/Scraptown | Build established: Mutant 4283 | -9/Scraptown | Visited Bundlers 4380 | -9/Scraptown | Visited Red Mages 4716 | -9/Scraptown | Heard Great Nut preacher, LISTEN AND RECITE! 4733 | -9/Scraptown | Visited TADAMA 4781 | -9/Scraptown | Visited Awakened 4840 | -9/Scraptown | Visited Artisan Demo Area 4969 | -9/Scraptown | Visited Cave Peace 5066 | -9/Scraptown | Discovered new exit (range 5) 5241 | -9/Scraptown | Visited Cyclists 5277 | -9/Scraptown | Visited UFD Registry 5277 | -9/Scraptown | Registered with UFD as "Gammachassis" 5328 | -9/Scraptown | Visited Derelict Rescue Squad 5339 | -9/Scraptown | Found DRS Beacon 5372 | -9/Scraptown | Visited Analyses Database 5413 | -9/Scraptown | Visited Scrapoid Pod Storage 5688 | -9/Scraptown | Visited Research Penetration Think Tank 5734 | -9/Scraptown | Visited Junk Repository 5788 | -9/Scraptown | Visited Supply Room 5862 | -9/Scraptown | Visited A0-MCA Data Center 5900 | -9/Scraptown | Visited Sword Containment 5918 | -9/Scraptown | Found Prototype Slashing Weapon 5918 | -9/Scraptown | Identified Companion Sword 6549 | -9/Scraptown | Found Scrapoid Pod 7536 | -9/Scraptown | Met Optimus 7536 | -9/Scraptown | Accepted into 0bPrime 7649 | -9/Scraptown | Found Scrap Suit 7674 | -9/Scraptown | Discovered new exit (range 3) 7679 | -9/Scraptown | Entered Factory 7679 | -6/Factory | Evolved 6 slots: Propulsion x1, Utility x5 9275 | -6/Factory | Build established: Scavenger-Mutant 9965 | -6/Factory | Build established: Hacker-Mutant 10484 | -6/Factory | Build established: Mutant 10488 | -6/Factory | Discovered new exit (range 12) 10568 | -6/Factory | Entered another Factory area 10568 | -5/Factory | Evolved 2 slots: Utility x2 11102 | -5/Factory | Lost 4 parts (1n3u) 11273 | -5/Factory | Discovered new exit (range 10) 11337 | -5/Factory | Discovered new exit (range 15) 11342 | -5/Factory | Identified exit to Factory 11406 | -5/Factory | Entered another Factory area 11406 | -4/Factory | Evolved 2 slots: Power x1, Utility x1 11494 | -4/Factory | Discovered new exit (range 11) 11607 | -4/Factory | Identified exit to Research 11640 | -4/Factory | Loaded intel: 8 recycling unit locations 11667 | -4/Factory | Entered Research 11667 | -3/Research | Evolved 2 slots: Utility x2 11681 | -3/Research | Lost 3 parts (1p2n) 11924 | -3/Research | Build established: Scavenger-Gladiator 12415 | -3/Research | Lost 6 parts (1p2n3u) 12509 | -3/Research | Lost 9 parts (3p4n2u) 12701 | -3/Research | System corruption reached 10% 12802 | -3/Research | Discovered new exit (range 21) 12851 | -3/Research | Identified exit to Research 12862 | -3/Research | Entered another Research area 12862 | -2/Research | Evolved 2 slots: Propulsion x1, Utility x1 13039 | -2/Research | Core integrity fell below 50% 13047 | -2/Research | Core integrity fell below 20% 13049 | -2/Research | Destroyed by G-73 Enforcer with Heavy Laser Last Messages --------------- 13037_ Penetrated by Slug. 13038_ Attempting to rewire L-61 Swordsman. 13039_ Penetrated by Slug. 13039_ Attempting to rewire L-61 Swordsman. 13041_ Penetrated by Slug. 13041_ Adv. Dynamic Insulation System destroyed. 13042_ Penetrated by Slug. 13043_ Acquired Xenon Bombardment Thruster. 13044_ Slug penetrates Wall. 13044_ L-61 Swordsman reactivates. 13045_ Penetrated by Slug. 13045_ Xenon Bombardment Thruster destroyed. 13046_ System Shield destroyed. 13047_ Adv. Dynamic Insulation System destroyed. 13047_ Slug penetrates Wall. 13047_ Penetrated by Slug. 13047_ Adv. Transmission Jammer severed. Companion Sword: "My slot!" 13049_ Penetrated by Slug. 13049_ Transport Network Coupler destroyed. Map ----- +----------------------------------------------------+ | ???????????????""""" # ##????????????????????? | | ???????????????######## ##????????????????????? | | ???????????????# ????????????????????? | | ?????????????????? ?????????????????????? | | ??????????????????? ?????????????????????? | | ????????????????????? ???????????? | | ?????????????????????## ##????????????######+## | | ?????????????????????## ################ | | ?????????????????????## ################ | | ?????????????????????## ## | | ?????????????????????## ## | | ????????????????????? # A + " | | ?????????#### ???? # ## T | | ?????????####+###????## ##########"##/## " | | ????????? ???? # ###### # | | ????????? ??? # ###### # | | ????????? ] ? # / """ #######+ | | ???????? + ###### """" ####### | | ???????? # ###### """" ##???## | | ???????? + h ###### """ ##???## | | ??????????????##########/######## ##???## | | ??????????????#### #" ##???## | | ????????????????## #############???## | | ????????????????## hg g #############???## | | ????????????????## ===* ##??????????????## | | ????????????????## = @g ##????????????#### | | ????????????????## ==l ##????????????####+ | | ????????????????## * ##????????????## | | ????????????????## ##????????????## | | ????????????????## ##????????????## | | ????????????????## ##????????????## | | ????????????????## ##????????????## | | ????????????????#################????????????##### | | | | | | | | | | | | | | | | | | | | | | | | | | | | | | | | | | | +----------------------------------------------------+ Best States ------------- Heat Dissipation 50 Energy Generation 43 Energy Capacity 590 Matter Stores 300 Matter Capacity 300 Sight Range 22 Robot Scan Range 16 Terrain Scan Density 10 Jamming Range 16 Cloak Strength 2 EM Shielding 8 Armor Coverage 1200 Resistance: KI 25 Propulsion Shielding 33 Point Defense Rating 240 Melee Speed Boost 20 Phase Shifting 10 Evasion (%) 70 Melee Accuracy 20 Recoil Reduction 4 Offensive Hacking 22 Defensive Hacking 10 Item Schematics ----------------- None Robot Schematics ------------------ None Fabricated ------------ Nothing Repaired ---------- Nothing Studied --------- Carbon-fiber Leg | -5/Factory | Hacked Alien Tech Used ----------------- None Achievements -------------- None Challenges ------------ None Game ------ Seed ArcNeutronMinigun Manual? 0 Play Time 02:16:00 Cumulative 98.3 hours Start 2026.08.10 @ 21:13:53 End 2026.08.10 @ 23:35:35 Sessions 1 Manual Loads 0 Difficulty Rogue Special Mode None Game No. 78 Rogue 78 Adventurer 0 Explorer 0 Win Type - Total 1 Types 1/0/0/0/0/0/0/0/0/0 Lore% 35 Gallery% 38 Achievement% 29 Wizard Run 0 Options --------- Layout 1 ASCII 0 Keyboard 0 Movement Mouse Keybinds 0 Fullscreen 2 Font 24/Smallcaps Map View 50x35 Zoom Use 0% Tactical HUD 1 Map Filters NONE Filters NONE Steam 1 RUN: 2d379b1f-f082-41fd-a550-93fe3a4fd2bc